Cogmind - Beta 13 @@@ ROGUE MODE // 2024.04.11 @ 09:45:48 Player: m1m1c Result: Destroyed by X-62 Marksman with Gauss Rifle Performance ------------- Evolutions (2) 1000 Regions Visited (4) 800 Robots Destroyed (20) 100 Value Destroyed (747) 747 Prototype IDs (2) 40 Alien Tech Used (0) 0 Bonus (200) 200 TOTAL SCORE: 2887 Bonus ------- Pacifist 200 Cogmind --------- Core Integrity 0/550 Matter 278/300 Energy 79/100 System Corruption 4% Temperature Cool (0) Movement Core (250) Ox4 Location -8/Materials Parts ------- > --- POWER (1) -------- (None) > --- PROPULSION (4) --- (None) > --- UTILITY (4) ------ Medium Storage Unit > --- WEAPON (2) ------- Pulse Rifle > --- INVENTORY (10) --- High-capacity Matter Pod (200) Sensor Array Datajack Peak State ------------ > --- POWER ------------ Light Nuclear Core > --- PROPULSION ------- Light Treads Carbon-fiber Leg Carbon-fiber Leg > --- UTILITY ---------- Medium Storage Unit Experimental Sensor Array Improved Targeting Computer Weapon Shielding > --- WEAPON ----------- Shock Rifle High-powered Shotgun > --- INVENTORY -------- High-capacity Matter Pod Sensor Array Datajack [Rating: 29] Favorites ----------- Power Ion Engine Engine Ion Engine Power Core Light Nuclear Core Propulsion Aluminum Leg Treads Light Treads Leg Aluminum Leg Wheel Compact Wheel Utility Small Storage Unit Device Experimental Sensor Array Storage Small Storage Unit Processor Improved Targeting Computer Protection Weapon Shielding Weapon Medium Laser Energy Gun Medium Laser Energy Cannon Particle Cannon Ballistic Gun Light Assault Rifle Special Melee Weapon Datajack Build | -11 -10 -10 -9 -8 ------- Run | Yrd Mat Min Mat Mat Slots Evolved 4 | . . . 2 2 Power . | . . . . . Propulsion 2 | . . . 1 1 Utility 2 | . . . 1 1 Weapon . | . . . . . Parts Attached 32 | 6 . 1 9 16 Power 4 | 1 . . 2 1 Engine 2 | 1 . . 1 . Core 2 | . . . 1 1 Reactor . | . . . . . Propulsion 8 | 2 . . 2 4 Treads 1 | . . . . 1 Leg 6 | 2 . . 2 2 Wheel 1 | . . . . 1 Hover . | . . . . . Flight . | . . . . . Utility 10 | 1 . 1 2 6 Device 2 | . . 1 . 1 Storage 4 | 1 . . 2 1 Processor 3 | . . . . 3 Hackware . | . . . . . Protection 1 | . . . . 1 Artifact . | . . . . . Weapon 10 | 2 . . 3 5 Energy Gun 5 | 1 . . 1 3 Energy Cannon 1 | . . . 1 . Ballistic Gun 3 | 1 . . 1 1 Ballistic Cannon . | . . . . . Launcher . | . . . . . Special Weapon . | . . . . . Impact Weapon . | . . . . . Slashing Weapon . | . . . . . Piercing Weapon . | . . . . . Special Melee Weapon 1 | . . . . 1 Unidentified Prototypes 2 | . . 1 1 . Parts Lost 21 | . . . 4 17 Power 2 | . . . . 2 Propulsion 8 | . . . 2 6 Utility 4 | . . . . 4 Weapon 7 | . . . 2 5 Highest Loss Streak 9 | . . . 3 9 To Critical Strikes . | . . . . . Average Slot Usage (%) 81 | . 85 97 80 68 Engine 6 | . 14 14 5 . Core 4 | . . . 5 8 Treads 1 | . . . . 5 Leg 19 | . 28 28 17 11 Device 8 | . . 11 11 6 Storage 16 | . 14 14 22 7 Processor 2 | . . . . 10 Protection 1 | . . . . 5 Energy Gun 9 | . 14 14 8 4 Energy Cannon 4 | . . . 8 1 Ballistic Gun 6 | . 14 14 2 2 Naked Turns . | . . . . . Heaviest Build 23 | 13 13 14 23 23 Greatest Support 30 | 20 20 20 20 30 Greatest Overweight (x) 7 | 1 . . 7 3 Average Overweight (x) . | . . . . . Largest Inventory Capacity 10 | 8 8 8 8 10 Average Capacity 8 | 7 8 8 8 8 Most Carried 8 | . 3 4 8 8 Average Carried 3 | . 1 3 4 4 Final Capacity 10 | 8 8 8 8 10 Final Carried 8 | . 3 3 8 3 Class Distribution -------------------- 83% | Mutant 16% | Scavenger-Mutant Dominant Class ---------------- Mutant | -10/Materials Mutant | -10/Mines Mutant | -9/Materials Scavenger-Mutant | -8/Materials Resources | -11 -10 -10 -9 -8 ----------- Run | Yrd Mat Min Mat Mat Matter Collected 681 | 195 . . 355 131 Remotely . | . . . . . Salvage Created 900 | . . . 480 420 Parts 42 | . . . 23 19 Haulers Intercepted 1 | . . . 1 . Recyclers Shooed . | . . . . . Parts Field Recycled . | . . . . . Retrieved Matter . | . . . . . Parts Self-Destructed . | . . . . . Prevented . | . . . . . Kills | -11 -10 -10 -9 -8 ------- Run | Yrd Mat Min Mat Mat Combat Hostiles Destroyed 15 | . . . 6 9 Melee 1 | . . . . 1 Guns 5 | . . . 1 4 Cannons 4 | . . . 4 . AOE 3 | . . . . 3 Classes Destroyed 9 | . . . 5 4 Worker 1 | . . . . 1 Hauler 1 | . . . 1 . Recycler 1 | . . . 1 . Watcher 2 | . . . 2 . Grunt 8 | . . . 3 5 Brawler 1 | . . . . 1 Sentry 4 | . . . 3 1 Specialist 1 | . . . . 1 Hunter 1 | . . . . 1 Best Kill Streak 5 | . . . 5 4 Combat Bots Only 4 | . . . 4 4 Max Kills in Single Turn 3 | . . . 1 3 Gunslinging . | . . . . . Exploded 3 | . . . . 3 Melee 1 | . . . . 1 Uniques/NPCs Destroyed . | . . . . . Combat | -11 -10 -10 -9 -8 -------- Run | Yrd Mat Min Mat Mat Hostile Shots Fired 241 | . 7 46 58 130 Missed 68 | . 3 16 14 35 Damage Taken 2683 | . 47 247 592 1797 Core 792 | . 12 81 135 564 Absorbed by Shields . | . . . . . Redirected to Shielding 50 | . . . . 50 Core Remaining (%) 76 | 100 . 62 66 . Volleys Fired 49 | . . . 26 23 Largest 2 | . . . 2 2 Hottest 124 | . . . 124 124 Shots Fired 76 | . . . 45 31 Gun 52 | . . . 22 30 Cannon 24 | . . . 23 1 Launcher . | . . . . . Special . | . . . . . Kinetic 21 | . . . 7 14 Thermal 43 | . . . 38 5 Explosive . | . . . . . Electromagnetic 12 | . . . . 12 Robot Hit Streak 5 | . . . 4 5 Robot Miss Streak 3 | . . . 3 3 Penetration Max . | . . . . . Secondary Targets . | . . . . . Shots Hit Robots 43 | . . . 22 21 Core Hits 35 | . . . 13 22 Critical Kills 1 | . . . 1 . Critical Parts Destroyed . | . . . . . Critical Strikes 3 | . . . 2 1 Burn 2 | . . . 1 1 Meltdown 1 | . . . 1 . Melee Attacks 1 | . . . . 1 Impact . | . . . . . Slashing . | . . . . . Piercing . | . . . . . Sneak Attacks . | . . . . . Combat Hostiles . | . . . . . Follow-up Attacks . | . . . . . Damage Inflicted 1790 | . . 5 433 1352 Guns 444 | . . . 80 364 Cannons 353 | . . . 332 21 Explosions 882 | . . . . 882 Melee . | . . . . . Ramming 111 | . . 5 21 85 Kinetic 269 | . . . 26 243 Thermal 1338 | . . . 386 952 Explosive . | . . . . . Electromagnetic 72 | . . . . 72 Impact . | . . . . . Slashing . | . . . . . Piercing . | . . . . . Highest Corruption 4 | . . . 2 4 Average Corruption 2 | . . . 2 3 Corruption Purged . | . . . . . Corruption Blocked . | . . . . . Effects 16 | . . . 7 9 Message Errors 4 | . . . 1 3 Matter Fused 6 | . . . 3 3 Heat Flow Errors 1 | . . . 1 . Energy Discharges 2 | . . . . 2 Misfires 1 | . . . 1 . Alerts 2 | . . . 1 1 Overload Shots . | . . . . . Overflow Damage 196 | . . . . 196 Projectiles . | . . . . . Explosions 196 | . . . . 196 Melee . | . . . . . Knockbacks . | . . . . . Impact . | . . . . . Kinetic . | . . . . . Secondary . | . . . . . Self-Inflicted Damage 127 | . . . 1 126 Shots 2 | . . . . 2 Rammed 28 | . . . 1 27 Targets Rammed 35 | . . 1 4 30 Kicked 7 | . . 1 3 3 Crushed . | . . . . . Highest Temperature 338 | . . . 338 148 Average Temperature 88 | . . . 115 28 Received Heat Transfer 960 | . 27 . 249 684 Siege Activations . | . . . . . Robots Corrupted . | . . . . . Combat Hostiles . | . . . . . Parts Fried . | . . . . . Impact Corruptions . | . . . . . Robots Melted 2 | . . . 1 1 Combat Hostiles 2 | . . . 1 1 Parts Melted 5 | . . . 5 . Heat Transferred 1536 | . . . 814 722 Parts Sabotaged . | . . . . . Parts Stolen . | . . . . . Parts Stripped . | . . . . . Power Chain Reactions . | . . . . . Alert | -11 -10 -10 -9 -8 ------- Run | Yrd Mat Min Mat Mat Peak Influence 250 | . 25 39 176 250 Initial 14 | . . 9 14 . Average 51 | . 4 11 36 139 Maximum Alert Level 1 | . . . . 1 Low Security (%) 95 | 100 100 100 100 79 Level 1 4 | . . . . 20 Level 2 . | . . . . . Level 3 . | . . . . . Level 4 . | . . . . . Level 5 . | . . . . . High Security . | . . . . . Max Security . | . . . . . Squads Dispatched 2 | . . . . 2 Investigation . | . . . . . Extermination . | . . . . . Reinforcement 2 | . . . . 2 Assault . | . . . . . Garrison . | . . . . . Intercept . | . . . . . Searches Triggered . | . . . . . Construction Impeded . | . . . . . Haulers Reinforced . | . . . . . Active Scanning Responses . | . . . . . Cargo Convoy Interrupts . | . . . . . Stealth | -11 -10 -10 -9 -8 --------- Run | Yrd Mat Min Mat Mat Distress Signals 2 | . . . 2 . Communications Jammed . | . . . . . Distress Signals . | . . . . . Times Spotted 41 | . 3 5 16 17 Peak Tracking Total 8 | . 3 3 6 8 Tactical Retreats 7 | . . 1 2 4 Traps | -11 -10 -10 -9 -8 ------- Run | Yrd Mat Min Mat Mat Traps Triggered . | . . . . . Indirectly . | . . . . . Trap Hack Attempts . | . . . . . Triggered . | . . . . . Disarmed . | . . . . . Reprogrammed . | . . . . . Reused . | . . . . . Traps Extracted . | . . . . . Installed . | . . . . . Triggered . | . . . . . Machines | -11 -10 -10 -9 -8 ---------- Run | Yrd Mat Min Mat Mat Machines Disabled 2 | . . . . 2 Max in Single Turn 2 | . . . . 2 Machines Repaired . | . . . . . Machines Dismantled . | . . . . . Machines Sabotaged . | . . . . . Overloaded Fab Kills . | . . . . . Hacking | -11 -10 -10 -9 -8 --------- Run | Yrd Mat Min Mat Mat Machines Accessed 2 | . 1 1 . . Terminals 2 | . 1 1 . . Fabricators . | . . . . . Repair Stations . | . . . . . Recycling Units . | . . . . . Scanalyzers . | . . . . . Garrison Access . | . . . . . Total Hacks 5 | . 2 3 . . Successful 4 | . 2 2 . . Failed 1 | . . 1 . . Catastrophic . | . . . . . Database Lockouts . | . . . . . Manual . | . . . . . Terminals 5 | . 2 3 . . Fabricators . | . . . . . Repair Stations . | . . . . . Recycling Units . | . . . . . Scanalyzers . | . . . . . Garrison Access . | . . . . . Terminal Hacks 4 | . 2 2 . . Alert Level 1 | . . 1 . . Assault Status 1 | . . 1 . . Hauler Manifests 2 | . 2 . . . Fabricator Hacks . | . . . . . Repair Station Hacks . | . . . . . Recycling Unit Hacks . | . . . . . Scanalyzer . | . . . . . Garrison Access Hacks . | . . . . . Unauthorized Hacks . | . . . . . Terminals . | . . . . . Fabricators . | . . . . . Repair Stations . | . . . . . Recycling Units . | . . . . . Scanalyzers . | . . . . . Garrison Access . | . . . . . Data Cores Recovered . | . . . . . Used . | . . . . . Hacking Detections 2 | . 1 1 . . Full Trace Events . | . . . . . Feedback Events . | . . . . . Feedback Blocked . | . . . . . Robot Schematics Acquired . | . . . . . Robots Built . | . . . . . Authchips . | . . . . . Time . | . . . . . Total Robot Build Rating . | . . . . . Part Schematics Acquired . | . . . . . Parts Built . | . . . . . Authchips . | . . . . . Time . | . . . . . Total Part Build Rating . | . . . . . Parts Repaired . | . . . . . Time . | . . . . . Parts Recycled . | . . . . . Recycled Matter . | . . . . . Retrieved Matter . | . . . . . Retrieved Components . | . . . . . Parts Scanalyzed . | . . . . . Part Schematics Acquired . | . . . . . Parts Damaged . | . . . . . Bothacking | -11 -10 -10 -9 -8 ------------ Run | Yrd Mat Min Mat Mat Used RIF Installer . | . . . . . Robots Hacked . | . . . . . Non-combat . | . . . . . Combat . | . . . . . Robot Hacks Applied . | . . . . . Relay Couplers Released . | . . . . . Fabnet Peak Effective % . | . . . . . Robots Rewired . | . . . . . Allies Hacked . | . . . . . Hacks Repelled . | . . . . . Allies | -11 -10 -10 -9 -8 -------- Run | Yrd Mat Min Mat Mat Total Allies . | . . . . . Largest Group . | . . . . . Highest-Rated Group . | . . . . . Highest-Rated Ally . | . . . . . Total Orders . | . . . . . Ally Attacks . | . . . . . Total Damage . | . . . . . Kills . | . . . . . Allies Corrupted . | . . . . . Allies Melted . | . . . . . Intel | -11 -10 -10 -9 -8 ------- Run | Yrd Mat Min Mat Mat Robot Analysis Total . | . . . . . Derelict Logs Recovered . | . . . . . Drone Launches . | . . . . . Drone Recoveries . | . . . . . Exploration | -11 -10 -10 -9 -8 ------------- Run | Yrd Mat Min Mat Mat Turns Passed 1867 | 72 192 332 827 444 Spaces Moved 1178 | 57 158 275 429 259 Core 56 | 10 . . 32 14 Treads 51 | . . . . 51 Legs 1037 | 47 158 275 397 160 Wheels 34 | . . . . 34 Hover . | . . . . . Flight . | . . . . . Fastest Speed 50 | 50 120 120 120 50 Average Speed 139 | 111 120 120 170 128 Slowest Speed 400 | 120 120 120 400 240 Overloaded Moves . | . . . . . Propulsion Burnouts . | . . . . . Robots Hopped . | . . . . . Cave-ins Triggered . | . . . . . Exploration Rate (%) 23 | 5 28 39 27 17 Regions Visited 4 Branch Regions 1 Pre-discovered Areas . | . . . . . Known Exits Taken . | . . . . . Unknown Exits Taken 4 | 1 1 1 1 . Scrap Searched . | . . . . . Spaces Dug . | . . . . . Terrain Destroyed 56 | . . . . 56 Melee . | . . . . . Projectile . | . . . . . AOE 56 | . . . . 56 Terrain Rammed . | . . . . . Walls Destroyed . | . . . . . Machines Disabled . | . . . . . Actions | -11 -10 -10 -9 -8 --------- Run | Yrd Mat Min Mat Mat Total 1311 | 62 160 277 477 335 Wait . | . . . . . Move 1174 | 56 157 274 428 259 Hop . | . . . . . Pick Up 12 | . 3 1 7 1 Fast Attach 17 | 6 . . 3 8 Attach 12 | . . 1 3 8 Detach 3 | . . . 1 2 Swap 3 | . . . 3 . Drop 5 | . . . 2 3 Fire 49 | . . . 26 23 Melee 1 | . . . . 1 Ram 28 | . . . 1 27 Kick 7 | . . 1 3 3 Crush . | . . . . . Escape Stasis . | . . . . . Rewire . | . . . . . Trap . | . . . . . Miscellaneous . | . . . . . Route ------- -11/Scrapyard -10/Materials -10/Mines -9/Materials -8/Materials History --------- Turn | Location | Event 15 | -11/Scrapyard | Discovered new exit (range 16) 73 | -11/Scrapyard | Entered Materials 155 | -10/Materials | Discovered new exit (range 11) 265 | -10/Materials | Entered Mines 302 | -10/Mines | Build established: Mutant 310 | -10/Mines | Found a damaged Exp. Sensor Array with a note attached 312 | -10/Mines | Found Prototype Device 313 | -10/Mines | Identified Exp. Sensor Array 395 | -10/Mines | Discovered new exit (range 10) 597 | -10/Mines | Entered Materials 597 | -9/Materials | Evolved 2 slots: Propulsion x1, Utility x1 989 | -9/Materials | Lost 3 parts (1n2w) 1394 | -9/Materials | Discovered new exit (range 12) 1424 | -9/Materials | Entered another Materials area 1424 | -8/Materials | Evolved 2 slots: Propulsion x1, Utility x1 1581 | -8/Materials | Lost 5 parts (1p3n1u) 1818 | -8/Materials | Core integrity fell below 50% 1860 | -8/Materials | Core integrity fell below 20% 1868 | -8/Materials | Destroyed by X-62 Marksman with Gauss Rifle Last Messages --------------- Exp. Sensor Array destroyed. Carbon-fiber Leg destroyed. Penetrated by Slug. Carbon-fiber Leg destroyed. Slug penetrates G-47 Trooper. Critical hit (Burn: +37). G-47 Trooper destroyed. Penetrated by Slug. Lgt. Treads destroyed. X-62 Marksman destroyed. Hpw. Shotgun destroyed. Lgt. Nuclear Core destroyed. Critical hit (Burn: +37). Penetrated by Slug. Acquired Particle Gun. Penetrated by Slug. Critical hit (Burn: +37). Particle Gun destroyed. Acquired Pulse Rifle. Penetrated by Slug. Map ----- +----------------------------------------------------+ | ?????????????????????????????????????????????????? | | ??????????????????#??????????????????????????????? | | ????????????????? #??????????????????????????????? | | ???????????????? #??????????????????????????????? | | ??????????????? #??????????????????????????????? | | ??????????????? ##?????????????????????????????? | | ??????????????? ####??????????????????????????? | | ?????????????? ???????????????????????????? | | ?????????????? H ?????????????????????????????? | | ???????####### ???????????????????????????????? | | ???????? ?????????????????????????????????? | | ?????????# ##??????????????????????????????????? | | ?????????# #???????????????????????????????????? | | ?????????# #???????????????????????????????????? | | ?????????# #???????????????????????????????????? | | ?????????# #???????????????????????????????????? | | ?????????# #???????????????????????????????????? | | ?????????# #???????????????????????????????????? | | ?????????# #???????????????????????????????????? | | ?????????# #???????????????????????????????????? | | ?????????# #???????########????????????????????? | | ?????????# #???????# """ #????????????????????? | | ?????????+ #???????# """ #????????????????????? | | ?????????# #???????# """ #????????????????????? | | ?????????# #???????# x% #????????????????????? | | ########## ###?????# @ !#????????????????????? | | # = /#?????# gY #?? ###??????????????? | | """ # % ##########/### =#??????????????? | | """ # [! % ^ *%##?????????????? | | """ + =%[ ^ =! +??????????? | | # !% ####???????????? | | """ # ############## #??????????????? | | """ # #?????????????# ##??????????????? | | """ ## ##?????????????? #???????????????? | | ! ## #???????????????? #???????????????? | | #####+### #????????????????? #???????????????? | | ????# #?# #??????????????????#???????????????? | | ##### #?# #??????????????????????????????????? | | #?# #??????????????????????????????????? | | #######?# #??????????????????????????????????? | | ????????# #??????????????????????????????????? | | ????????# #??????????????????????????????????? | | ????????##### #??????????????????????????????????? | | ????????????? #??????????????????????????????????? | | ????????????? ???????????????????????????????????? | | ?????????????????????????????????????????????????? | | ?????????????????????????????????????????????????? | | ?????????????????????????????????????????????????? | | ?????????????????????????????????????????????????? | | ?????????????????????????????????????????????????? | +----------------------------------------------------+ Best States ------------- Heat Dissipation 31 Energy Generation 14 Energy Capacity 515 Matter Stores 300 Matter Capacity 500 Sight Range 16 Robot Scan Range 20 Terrain Scan Density 10 Weapon Shielding 33 Evasion (%) 55 Targeting Accuracy 8 Recoil Reduction 1 Item Schematics ----------------- None Robot Schematics ------------------ None Fabricated ------------ Nothing Alien Tech Used ----------------- None Achievements -------------- It's Just You Challenges ------------ None Game ------ Seed NovaReactiveCanceller Manual? 0 Play Time 00:14:44 Cumulative 8.8 hours Start 2024.04.11 @ 09:32:44 End 2024.04.11 @ 09:45:48 Sessions 1 Manual Loads 0 Difficulty Rogue Special Mode None Game No. 34 Rogue 34 Adventurer 0 Explorer 0 Win Type - Total 0 Types 0/0/0/0/0/0/0/0/0 Lore% 11 Gallery% 13 Achievement% 12 Wizard Run 0 Options --------- Layout 1 ASCII 1 Keyboard 0 Movement Arrows Keybinds 0 Fullscreen 1 Font 18/SmallcapsGlow Map View 50x40 Zoom Use 0% Tactical HUD 0 Map Filters NONE Filters NONE Steam 1 RUN: edcaf6c9-4652-4eee-952a-43aa8e06bf3a